[Event "*** Titled Tuesday Blitz"]
[Site "Chess.com"]
[Date "2019.03.05"]
[Round "5"]
[White "Marcus_Harvey"]
[Black "PowerThinking2650"]
[Result "1-0"]
[WhiteElo "2598"]
[BlackElo "2327"]
[TimeControl "180+2"]
[EndTime "14:11:22 PST"]
[Termination "Marcus_Harvey won by resignation"]

1. Nf3 {[%clk 0:03:01.9]} 1... Nf6 {[%clk 0:03:00.4]} 2. b3 {[%clk 0:03:03.8]}
2... g6 {[%clk 0:03:00.4]} 3. Bb2 {[%clk 0:03:05.2]} 3... Bg7 {[%clk 0:03:01.9]}
4. e3 {[%clk 0:03:06.9]} 4... O-O {[%clk 0:03:03.1]} 5. Be2 {[%clk 0:03:08.6]}
5... c5 {[%clk 0:02:59.3]} 6. O-O {[%clk 0:03:09.6]} 6... Nc6 {[%clk 0:03:00.3]}
7. d4 {[%clk 0:03:11.2]} 7... cxd4 {[%clk 0:03:00.4]} 8. Nxd4 {[%clk 0:03:13.1]}
8... d5 {[%clk 0:02:58.7]} 9. c4 {[%clk 0:03:14]} 9... Re8 {[%clk 0:02:49.5]}
10. cxd5 {[%clk 0:03:13.9]} 10... Nxd5 {[%clk 0:02:42.8]} 11. Nxc6 {[%clk
0:03:12.5]} 11... bxc6 {[%clk 0:02:42.8]} 12. Bxg7 {[%clk 0:03:14.1]} 12... Kxg7
{[%clk 0:02:44.7]} 13. Qc1 {[%clk 0:03:04.5]} 13... Bb7 {[%clk 0:02:42.1]} 14.
Rd1 {[%clk 0:03:02.8]} 14... Qb6 {[%clk 0:02:38.2]} 15. Na3 {[%clk 0:03:01.7]}
15... Rad8 {[%clk 0:02:31.1]} 16. Qb2+ {[%clk 0:02:59.6]} 16... Kg8 {[%clk
0:02:26.8]} 17. Nc4 {[%clk 0:02:59.6]} 17... Qc7 {[%clk 0:02:23.4]} 18. Rac1
{[%clk 0:02:57.6]} 18... e5 {[%clk 0:02:20.4]} 19. Bf3 {[%clk 0:02:51]} 19... e4
{[%clk 0:02:17.8]} 20. Be2 {[%clk 0:02:52.1]} 20... f5 {[%clk 0:01:59]} 21. g3
{[%clk 0:02:50.2]} 21... Qg7 {[%clk 0:01:51.6]} 22. Qxg7+ {[%clk 0:02:44.1]}
22... Kxg7 {[%clk 0:01:52.1]} 23. Na5 {[%clk 0:02:45.8]} 23... Ba8 {[%clk
0:01:45]} 24. Nxc6 {[%clk 0:02:45.5]} 24... Rd7 {[%clk 0:01:29.3]} 25. Bb5
{[%clk 0:02:34.1]} 25... Rc8 {[%clk 0:01:15.9]} 26. Nd4 {[%clk 0:02:17.3]} 26...
Rxc1 {[%clk 0:01:08.4]} 27. Rxc1 {[%clk 0:02:18.5]} 27... Re7 {[%clk 0:01:08.5]}
28. a3 {[%clk 0:02:11.8]} 28... Nf6 {[%clk 0:01:05.2]} 29. b4 {[%clk 0:02:10.8]}
29... Bd5 {[%clk 0:01:04.7]} 30. h3 {[%clk 0:02:09.5]} 30... h5 {[%clk
0:01:01.2]} 31. h4 {[%clk 0:02:10]} 31... Ng4 {[%clk 0:01:01.3]} 32. Rc5 {[%clk
0:02:08.9]} 32... Bf7 {[%clk 0:00:53]} 33. Be2 {[%clk 0:02:09.8]} 33... Ne5
{[%clk 0:00:53.1]} 34. Nc6 {[%clk 0:02:10.3]} 34... Nxc6 {[%clk 0:00:51.8]} 35.
Rxc6 {[%clk 0:02:12.2]} 35... Rd7 {[%clk 0:00:45.7]} 36. Kf1 {[%clk 0:02:02.8]}
36... Kf8 {[%clk 0:00:46.8]} 37. Ke1 {[%clk 0:02:01.5]} 37... Ke7 {[%clk
0:00:48.1]} 38. Bc4 {[%clk 0:02:01.2]} 38... Bxc4 {[%clk 0:00:43.6]} 39. Rxc4
{[%clk 0:02:03.1]} 39... Rd3 {[%clk 0:00:17.5]} 40. Rc7+ {[%clk 0:02:02.5]}
40... Kd6 {[%clk 0:00:16.8]} 41. Rxa7 {[%clk 0:02:03.4]} 41... Rb3 {[%clk
0:00:15.5]} 42. Ra6+ {[%clk 0:02:03.7]} 42... Kd5 {[%clk 0:00:16.8]} 43. Rxg6
{[%clk 0:02:04.9]} 43... Rxa3 {[%clk 0:00:15.7]} 44. Rg5 {[%clk 0:02:05.9]}
44... Kc4 {[%clk 0:00:16.9]} 45. Kf1 {[%clk 0:02:05.6]} 45... Kd3 {[%clk
0:00:12.2]} 46. Rxf5 {[%clk 0:02:05.8]} 46... Ra1+ {[%clk 0:00:13.4]} 47. Kg2
{[%clk 0:02:06.9]} 47... Rb1 {[%clk 0:00:14.6]} 48. Rxh5 {[%clk 0:02:06.1]}
48... Rxb4 {[%clk 0:00:14.8]} 49. Rd5+ {[%clk 0:02:07.3]} 49... Ke2 {[%clk
0:00:15.8]} 50. Rd4 {[%clk 0:02:08.5]} 1-0

[Event "*** Titled Tuesday Blitz"]
[Site "Chess.com"]
[Date "2019.03.05"]
[Round "5"]
[White "GrandGlacier"]
[Black "Mbneu"]
[Result "1-0"]
[WhiteElo "2153"]
[BlackElo "2240"]
[TimeControl "180+2"]
[EndTime "14:11:30 PST"]
[Termination "GrandGlacier won by resignation"]

1. e4 {[%clk 0:03:01.9]} 1... c5 {[%clk 0:02:59.7]} 2. Nf3 {[%clk 0:03:02.9]}
2... Nf6 {[%clk 0:02:59.9]} 3. e5 {[%clk 0:03:02.8]} 3... Nd5 {[%clk 0:03:00.6]}
4. d4 {[%clk 0:03:03.5]} 4... cxd4 {[%clk 0:03:00.4]} 5. Qxd4 {[%clk 0:03:04.1]}
5... e6 {[%clk 0:03:00.6]} 6. Nc3 {[%clk 0:02:59.7]} 6... Nc6 {[%clk 0:03:00.1]}
7. Qg4 {[%clk 0:02:56.6]} 7... f5 {[%clk 0:02:58.9]} 8. exf6 {[%clk 0:02:53.1]}
8... Nxf6 {[%clk 0:02:58.5]} 9. Qh4 {[%clk 0:02:50.3]} 9... Be7 {[%clk
0:02:58.2]} 10. Bd3 {[%clk 0:02:50.3]} 10... d5 {[%clk 0:02:51.8]} 11. Bg6+
{[%clk 0:02:45.8]} 11... Kf8 {[%clk 0:02:51.9]} 12. Ng5 {[%clk 0:02:30.3]} 12...
Ne5 {[%clk 0:02:49.6]} 13. Bd3 {[%clk 0:01:36.4]} 13... Nxd3+ {[%clk 0:02:29.3]}
14. cxd3 {[%clk 0:01:37.9]} 14... Kg8 {[%clk 0:02:07.7]} 15. O-O {[%clk
0:01:25.9]} 15... h6 {[%clk 0:02:01.4]} 16. Nf3 {[%clk 0:01:26.6]} 16... Ne4
{[%clk 0:01:49.7]} 17. Qh5 {[%clk 0:01:27]} 17... Nf6 {[%clk 0:01:44.1]} 18. Qe5
{[%clk 0:01:20.8]} 18... Bd6 {[%clk 0:01:42.6]} 19. Qd4 {[%clk 0:01:19.5]} 19...
Bd7 {[%clk 0:01:36.5]} 20. Ne5 {[%clk 0:01:18.2]} 20... Kh7 {[%clk 0:01:32.1]}
21. Bf4 {[%clk 0:01:15.4]} 21... Qe7 {[%clk 0:01:22.8]} 22. Qe3 {[%clk
0:01:08.6]} 22... Rhf8 {[%clk 0:01:19.3]} 23. d4 {[%clk 0:01:08.1]} 23... g5
{[%clk 0:01:18.7]} 24. Qd3+ {[%clk 0:01:08.5]} 24... Ne4 {[%clk 0:01:03.6]} 25.
Nxe4 {[%clk 0:01:08]} 25... dxe4 {[%clk 0:00:52.1]} 26. Qxe4+ {[%clk 0:01:08.1]}
26... Rf5 {[%clk 0:00:53.6]} 27. g4 {[%clk 0:00:50.1]} 27... gxf4 {[%clk
0:00:45.5]} 28. gxf5 {[%clk 0:00:49]} 28... Qg5+ {[%clk 0:00:37.8]} 29. Kh1
{[%clk 0:00:40.2]} 29... Bxe5 {[%clk 0:00:37.7]} 30. fxe6+ {[%clk 0:00:37.5]}
30... Kh8 {[%clk 0:00:33]} 31. exd7 {[%clk 0:00:37]} 1-0

[Event "*** Titled Tuesday Blitz"]
[Site "Chess.com"]
[Date "2019.03.05"]
[Round "5"]
[White "ShimanovAlex"]
[Black "DanielMieles1985"]
[Result "0-1"]
[WhiteElo "2807"]
[BlackElo "2636"]
[TimeControl "180+2"]
[EndTime "14:11:37 PST"]
[Termination "DanielMieles1985 won on time"]

1. e4 {[%clk 0:03:01.9]} 1... e5 {[%clk 0:03:00.1]} 2. Bc4 {[%clk 0:03:01.4]}
2... Nf6 {[%clk 0:02:58.6]} 3. d3 {[%clk 0:03:02.1]} 3... Bc5 {[%clk 0:02:59.4]}
4. Nf3 {[%clk 0:03:03]} 4... d6 {[%clk 0:02:58.9]} 5. c3 {[%clk 0:03:00.9]} 5...
Nc6 {[%clk 0:02:59.2]} 6. h3 {[%clk 0:02:55.8]} 6... a5 {[%clk 0:02:56]} 7. a4
{[%clk 0:02:54.2]} 7... O-O {[%clk 0:02:56.5]} 8. Bg5 {[%clk 0:02:53.9]} 8... h6
{[%clk 0:02:55.4]} 9. Bh4 {[%clk 0:02:55]} 9... g5 {[%clk 0:02:54.2]} 10. Bg3
{[%clk 0:02:55.9]} 10... Ba7 {[%clk 0:02:50.3]} 11. Nbd2 {[%clk 0:02:55.1]}
11... Nh5 {[%clk 0:02:44.5]} 12. Bh2 {[%clk 0:02:55.6]} 12... Qf6 {[%clk
0:02:37.7]} 13. g4 {[%clk 0:02:53.5]} 13... Nf4 {[%clk 0:02:38.1]} 14. Bxf4
{[%clk 0:02:54.1]} 14... Qxf4 {[%clk 0:02:34.3]} 15. Qe2 {[%clk 0:02:47.9]}
15... Be6 {[%clk 0:02:29.6]} 16. Nf1 {[%clk 0:02:45]} 16... Ne7 {[%clk
0:02:24.5]} 17. Ng3 {[%clk 0:02:45.6]} 17... Qf6 {[%clk 0:02:19.8]} 18. Nf5
{[%clk 0:02:42.5]} 18... Bxf5 {[%clk 0:01:58.4]} 19. gxf5 {[%clk 0:02:41.5]}
19... d5 {[%clk 0:01:59.7]} 20. Ba2 {[%clk 0:02:41.9]} 20... dxe4 {[%clk
0:01:56.2]} 21. dxe4 {[%clk 0:02:42.6]} 21... Rfd8 {[%clk 0:01:50.4]} 22. Qc4
{[%clk 0:02:25.1]} 22... Rd7 {[%clk 0:01:35]} 23. Ke2 {[%clk 0:02:17.6]} 23...
Rad8 {[%clk 0:01:31]} 24. Rag1 {[%clk 0:02:11.8]} 24... Nxf5 {[%clk 0:01:07.8]}
25. h4 {[%clk 0:01:56.9]} 25... Nxh4 {[%clk 0:00:42.1]} 26. Rh3 {[%clk
0:00:02.2]} 26... Rd2+ {[%clk 0:00:37.2]} 27. Ke1 {[%clk 0:00:02.6]} 27... Nxf3+
{[%clk 0:00:30.3]} 0-1

[Event "*** Titled Tuesday Blitz"]
[Site "Chess.com"]
[Date "2019.03.05"]
[Round "5"]
[White "shrek4life02"]
[Black "DrMelekess"]
[Result "0-1"]
[WhiteElo "2390"]
[BlackElo "2696"]
[TimeControl "180+2"]
[EndTime "14:11:39 PST"]
[Termination "DrMelekess won by resignation"]

1. d4 {[%clk 0:03:01.9]} 1... d5 {[%clk 0:02:59.7]} 2. Bf4 {[%clk 0:03:00.8]}
2... Nf6 {[%clk 0:02:54.6]} 3. Nf3 {[%clk 0:02:59.5]} 3... e6 {[%clk 0:02:55.8]}
4. e3 {[%clk 0:03:00.6]} 4... Bd6 {[%clk 0:02:56.8]} 5. Bg3 {[%clk 0:03:01.9]}
5... O-O {[%clk 0:02:55.2]} 6. Bd3 {[%clk 0:03:02.8]} 6... c5 {[%clk 0:02:56.3]}
7. c3 {[%clk 0:03:03.5]} 7... b6 {[%clk 0:02:57.3]} 8. Nbd2 {[%clk 0:03:04.3]}
8... Bb7 {[%clk 0:02:58.3]} 9. O-O {[%clk 0:03:04.6]} 9... Qc7 {[%clk
0:02:56.4]} 10. Ne5 {[%clk 0:03:05]} 10... Nbd7 {[%clk 0:02:56.1]} 11. f4 {[%clk
0:03:06.1]} 11... Ne4 {[%clk 0:02:47.3]} 12. Nxe4 {[%clk 0:03:02.7]} 12... dxe4
{[%clk 0:02:49.2]} 13. Bb5 {[%clk 0:02:59.3]} 13... Nf6 {[%clk 0:02:47.7]} 14.
Qe2 {[%clk 0:02:43.8]} 14... Nd5 {[%clk 0:02:39.2]} 15. Nc4 {[%clk 0:02:32.2]}
15... cxd4 {[%clk 0:02:11.5]} 16. Nxd6 {[%clk 0:02:26.1]} 16... d3 {[%clk
0:02:00.4]} 17. Bxd3 {[%clk 0:02:11.4]} 17... exd3 {[%clk 0:01:57.3]} 18. Qxd3
{[%clk 0:02:12.5]} 18... Qxd6 {[%clk 0:01:56.9]} 19. e4 {[%clk 0:02:04.7]} 19...
Qc5+ {[%clk 0:01:55.5]} 20. Bf2 {[%clk 0:02:04.7]} 20... Nxf4 {[%clk 0:01:56.6]}
21. Bxc5 {[%clk 0:02:05.6]} 21... Nxd3 {[%clk 0:01:57.1]} 22. Bxf8 {[%clk
0:02:07.3]} 22... Kxf8 {[%clk 0:01:54]} 23. a4 {[%clk 0:01:46.6]} 23... a5
{[%clk 0:01:46]} 24. b4 {[%clk 0:01:44.5]} 24... Bxe4 {[%clk 0:01:44.8]} 25.
bxa5 {[%clk 0:01:39.6]} 25... bxa5 {[%clk 0:01:46.1]} 26. Rab1 {[%clk
0:01:33.2]} 26... f5 {[%clk 0:01:40.1]} 27. Rb5 {[%clk 0:01:28.3]} 27... Ke7
{[%clk 0:01:36.4]} 28. c4 {[%clk 0:01:24.6]} 28... Rc8 {[%clk 0:01:24.5]} 29.
Rxa5 {[%clk 0:01:20.2]} 29... Rxc4 {[%clk 0:01:25.2]} 30. Ra7+ {[%clk
0:01:09.9]} 30... Kf6 {[%clk 0:01:26.3]} 31. g4 {[%clk 0:01:10.9]} 31... Rc2
{[%clk 0:01:25.1]} 32. g5+ {[%clk 0:01:12.1]} 32... Kg6 {[%clk 0:01:24.9]} 33.
Ra1 {[%clk 0:01:08.2]} 33... Rg2+ {[%clk 0:01:24.7]} 34. Kf1 {[%clk 0:01:09.6]}
34... Rxh2 {[%clk 0:01:20.1]} 35. Ra3 {[%clk 0:01:09.9]} 35... f4 {[%clk
0:01:06.2]} 36. Rd7 {[%clk 0:00:58.2]} 36... Rh1+ {[%clk 0:00:44.3]} 37. Ke2
{[%clk 0:00:58.5]} 37... f3+ {[%clk 0:00:46.2]} 38. Ke3 {[%clk 0:00:46.8]} 38...
f2 {[%clk 0:00:48.1]} 0-1

[Event "*** Titled Tuesday Blitz"]
[Site "Chess.com"]
[Date "2019.03.05"]
[Round "5"]
[White "Grieve72"]
[Black "Chessialist"]
[Result "0-1"]
[WhiteElo "2346"]
[BlackElo "2498"]
[TimeControl "180+2"]
[EndTime "14:11:40 PST"]
[Termination "Chessialist won by resignation"]

1. d4 {[%clk 0:02:59.9]} 1... Nf6 {[%clk 0:03:00.7]} 2. Bg5 {[%clk 0:03:00.4]}
2... c5 {[%clk 0:03:00.7]} 3. Nc3 {[%clk 0:03:00.2]} 3... cxd4 {[%clk
0:02:59.5]} 4. Qxd4 {[%clk 0:02:59.8]} 4... Nc6 {[%clk 0:03:00.6]} 5. Qh4 {[%clk
0:03:00.7]} 5... e6 {[%clk 0:03:00.5]} 6. e4 {[%clk 0:03:01.2]} 6... Be7 {[%clk
0:03:01]} 7. O-O-O {[%clk 0:03:00.9]} 7... Qa5 {[%clk 0:03:00.7]} 8. f4 {[%clk
0:02:59.8]} 8... d6 {[%clk 0:03:00.8]} 9. Nf3 {[%clk 0:02:58.9]} 9... a6 {[%clk
0:02:55.7]} 10. Qe1 {[%clk 0:02:58.5]} 10... h6 {[%clk 0:02:42.8]} 11. Bh4
{[%clk 0:02:57.6]} 11... Qc7 {[%clk 0:01:55]} 12. e5 {[%clk 0:02:46.4]} 12...
dxe5 {[%clk 0:01:55]} 13. fxe5 {[%clk 0:02:46.4]} 13... Ng4 {[%clk 0:01:50.9]}
14. Bxe7 {[%clk 0:02:39.8]} 14... Qxe7 {[%clk 0:01:38.6]} 15. h3 {[%clk
0:02:23.9]} 15... Ngxe5 {[%clk 0:01:38.9]} 16. Ne4 {[%clk 0:01:55]} 16... O-O
{[%clk 0:01:35.7]} 17. Nxe5 {[%clk 0:01:47.9]} 17... Nxe5 {[%clk 0:01:36.5]} 18.
g4 {[%clk 0:01:48.1]} 18... Bd7 {[%clk 0:01:33.8]} 19. Qg3 {[%clk 0:01:36.4]}
19... Ng6 {[%clk 0:01:29.1]} 20. Bg2 {[%clk 0:01:31.2]} 20... Bc6 {[%clk
0:01:29.9]} 21. h4 {[%clk 0:01:29.4]} 21... Qb4 {[%clk 0:01:26.1]} 22. Rhe1
{[%clk 0:01:15.5]} 22... Rfd8 {[%clk 0:01:23.1]} 23. Rxd8+ {[%clk 0:00:55.8]}
23... Rxd8 {[%clk 0:01:23.5]} 24. c3 {[%clk 0:00:54.6]} 24... Qa4 {[%clk
0:01:21.4]} 25. a3 {[%clk 0:00:43.4]} 25... Qc4 {[%clk 0:01:07.8]} 26. h5 {[%clk
0:00:38.3]} 26... Qa2 {[%clk 0:01:03.2]} 27. Nf6+ {[%clk 0:00:18.7]} 27... gxf6
{[%clk 0:00:59.9]} 28. Bxc6 {[%clk 0:00:19.4]} 28... Ne5 {[%clk 0:00:52]} 29.
Be4 {[%clk 0:00:18.6]} 29... Nc4 {[%clk 0:00:49.9]} 30. Re2 {[%clk 0:00:09.5]}
30... Nxa3 {[%clk 0:00:42.5]} 0-1

[Event "*** Titled Tuesday Blitz"]
[Site "Chess.com"]
[Date "2019.03.05"]
[Round "5"]
[White "Margency"]
[Black "MITerryble"]
[Result "0-1"]
[WhiteElo "2597"]
[BlackElo "2811"]
[TimeControl "180+2"]
[EndTime "14:11:42 PST"]
[Termination "MITerryble won on time"]

1. d4 {[%clk 0:03:01.9]} 1... Nf6 {[%clk 0:02:59.7]} 2. Bf4 {[%clk 0:03:02.8]}
2... d6 {[%clk 0:02:59.6]} 3. Nc3 {[%clk 0:03:01.5]} 3... c6 {[%clk 0:02:52.2]}
4. e4 {[%clk 0:03:01.5]} 4... Qa5 {[%clk 0:02:53.1]} 5. Bd2 {[%clk 0:02:47.8]}
5... Qb6 {[%clk 0:02:53.6]} 6. Nf3 {[%clk 0:02:47.7]} 6... Bg4 {[%clk
0:02:45.4]} 7. e5 {[%clk 0:02:47]} 7... dxe5 {[%clk 0:02:44]} 8. dxe5 {[%clk
0:02:47.5]} 8... Nfd7 {[%clk 0:02:29.2]} 9. e6 {[%clk 0:02:19.3]} 9... Bxe6
{[%clk 0:02:28.1]} 10. Bd3 {[%clk 0:02:17.2]} 10... Nc5 {[%clk 0:02:26.9]} 11.
Be2 {[%clk 0:02:09.7]} 11... Nbd7 {[%clk 0:02:25.5]} 12. O-O {[%clk 0:02:08.5]}
12... Bg4 {[%clk 0:02:23.1]} 13. Ng5 {[%clk 0:02:06.3]} 13... Bxe2 {[%clk
0:02:19.2]} 14. Qxe2 {[%clk 0:02:07.5]} 14... h6 {[%clk 0:02:20.6]} 15. Nf3
{[%clk 0:01:46.9]} 15... Qxb2 {[%clk 0:02:07.7]} 16. Rab1 {[%clk 0:01:27]} 16...
Qxc2 {[%clk 0:02:05]} 17. Nd4 {[%clk 0:01:22.4]} 17... Qg6 {[%clk 0:01:58.1]}
18. Rfd1 {[%clk 0:01:10.4]} 18... e6 {[%clk 0:01:50.6]} 19. Be3 {[%clk
0:00:31.2]} 19... Be7 {[%clk 0:01:45.5]} 20. Rxb7 {[%clk 0:00:27.6]} 20... Nxb7
{[%clk 0:01:42.9]} 21. Nxc6 {[%clk 0:00:28.7]} 21... Nbc5 {[%clk 0:00:59.7]} 22.
Bxc5 {[%clk 0:00:17.8]} 22... Bxc5 {[%clk 0:00:49.9]} 23. Rxd7 {[%clk
0:00:18.3]} 23... O-O {[%clk 0:00:41.5]} 24. Ne4 {[%clk 0:00:18.5]} 24... Rac8
{[%clk 0:00:35.7]} 25. Ne5 {[%clk 0:00:14.5]} 25... Qf5 {[%clk 0:00:36.5]} 26.
Nd3 {[%clk 0:00:10]} 26... Bb6 {[%clk 0:00:30.3]} 27. g4 {[%clk 0:00:06.2]}
27... Qb5 {[%clk 0:00:29.5]} 0-1

[Event "*** Titled Tuesday Blitz"]
[Site "Chess.com"]
[Date "2019.03.05"]
[Round "5"]
[White "GameOverBro"]
[Black "Maili15"]
[Result "0-1"]
[WhiteElo "2389"]
[BlackElo "2290"]
[TimeControl "180+2"]
[EndTime "14:11:49 PST"]
[Termination "Maili15 won by resignation"]

1. e4 {[%clk 0:03:01.9]} 1... d5 {[%clk 0:02:59.4]} 2. exd5 {[%clk 0:03:02.2]}
2... Nf6 {[%clk 0:02:58.8]} 3. d4 {[%clk 0:03:00.5]} 3... Bg4 {[%clk 0:02:57.6]}
4. Be2 {[%clk 0:03:00.7]} 4... Bxe2 {[%clk 0:02:57.7]} 5. Qxe2 {[%clk
0:02:59.8]} 5... Qd7 {[%clk 0:02:31.7]} 6. Nf3 {[%clk 0:02:53.4]} 6... c6 {[%clk
0:02:21.1]} 7. dxc6 {[%clk 0:02:50]} 7... Nxc6 {[%clk 0:02:23]} 8. c3 {[%clk
0:02:51.2]} 8... e6 {[%clk 0:02:23.1]} 9. Nbd2 {[%clk 0:02:49.1]} 9... Be7
{[%clk 0:02:22.6]} 10. O-O {[%clk 0:02:42.4]} 10... O-O {[%clk 0:02:23]} 11. Nc4
{[%clk 0:02:44]} 11... Nd5 {[%clk 0:02:17.3]} 12. Bg5 {[%clk 0:02:35.1]} 12...
Bxg5 {[%clk 0:01:32.7]} 13. Nxg5 {[%clk 0:02:35.4]} 13... h6 {[%clk 0:01:33.2]}
14. Nf3 {[%clk 0:02:35.2]} 14... Nf4 {[%clk 0:01:23.3]} 15. Qe4 {[%clk
0:02:32.1]} 15... Qd5 {[%clk 0:01:17.6]} 16. Qxf4 {[%clk 0:02:26.6]} 16... Qxc4
{[%clk 0:01:17.7]} 17. Rfe1 {[%clk 0:02:24.2]} 17... Rac8 {[%clk 0:01:10.6]} 18.
h4 {[%clk 0:02:20.1]} 18... b5 {[%clk 0:01:07.5]} 19. a3 {[%clk 0:02:20.5]}
19... a5 {[%clk 0:01:07.9]} 20. Re3 {[%clk 0:02:14.6]} 20... b4 {[%clk
0:01:03.6]} 21. axb4 {[%clk 0:02:16.5]} 21... axb4 {[%clk 0:01:03.8]} 22. g4
{[%clk 0:02:11.6]} 22... Qb3 {[%clk 0:00:46]} 23. cxb4 {[%clk 0:01:52.5]} 23...
Qxb2 {[%clk 0:00:43]} 24. Rd1 {[%clk 0:01:36.5]} 24... Nxb4 {[%clk 0:00:43]} 25.
Qg3 {[%clk 0:01:14.8]} 25... Nd5 {[%clk 0:00:37.3]} 26. Re5 {[%clk 0:01:14.2]}
26... Rc3 {[%clk 0:00:34.8]} 27. g5 {[%clk 0:01:02.9]} 27... Qb3 {[%clk
0:00:29.3]} 28. gxh6 {[%clk 0:00:54.2]} 28... Qxd1+ {[%clk 0:00:28.7]} 29. Kg2
{[%clk 0:00:55.2]} 29... g6 {[%clk 0:00:21.5]} 30. h7+ {[%clk 0:00:44.5]} 30...
Kg7 {[%clk 0:00:20]} 31. Rxd5 {[%clk 0:00:21.7]} 31... Qxf3+ {[%clk 0:00:17.3]}
32. Qxf3 {[%clk 0:00:22.4]} 32... Rxf3 {[%clk 0:00:18.1]} 0-1

[Event "*** Titled Tuesday Blitz"]
[Site "Chess.com"]
[Date "2019.03.05"]
[Round "5"]
[White "calemcc"]
[Black "vladimir_petrov"]
[Result "1-0"]
[WhiteElo "2236"]
[BlackElo "2361"]
[TimeControl "180+2"]
[EndTime "14:11:53 PST"]
[Termination "calemcc won on time"]

1. d4 {[%clk 0:02:55.5]} 1... Nf6 {[%clk 0:02:56.8]} 2. c4 {[%clk 0:02:55.9]}
2... e6 {[%clk 0:02:56.9]} 3. Nf3 {[%clk 0:02:56]} 3... b6 {[%clk 0:02:56.2]} 4.
g3 {[%clk 0:02:53.5]} 4... Ba6 {[%clk 0:02:56]} 5. b3 {[%clk 0:02:50.2]} 5...
Bb4+ {[%clk 0:02:56]} 6. Bd2 {[%clk 0:02:51.8]} 6... Be7 {[%clk 0:02:56.4]} 7.
Bg2 {[%clk 0:02:53.4]} 7... c6 {[%clk 0:02:56.6]} 8. O-O {[%clk 0:02:54.3]} 8...
d5 {[%clk 0:02:57.5]} 9. Ne5 {[%clk 0:02:53.2]} 9... Nfd7 {[%clk 0:02:58.5]} 10.
Nxd7 {[%clk 0:02:53.9]} 10... Nxd7 {[%clk 0:02:59.5]} 11. Bc3 {[%clk 0:02:55.8]}
11... f5 {[%clk 0:02:44.4]} 12. Nd2 {[%clk 0:02:52.1]} 12... O-O {[%clk
0:02:44.5]} 13. Rc1 {[%clk 0:02:47.3]} 13... Nf6 {[%clk 0:02:43]} 14. f3 {[%clk
0:02:28]} 14... c5 {[%clk 0:02:01.7]} 15. e3 {[%clk 0:02:09.9]} 15... Rc8 {[%clk
0:01:59.2]} 16. Re1 {[%clk 0:01:56.6]} 16... cxd4 {[%clk 0:01:18.2]} 17. Bxd4
{[%clk 0:01:55.7]} 17... Bc5 {[%clk 0:01:16.4]} 18. Bxc5 {[%clk 0:01:40.9]}
18... bxc5 {[%clk 0:01:17]} 19. cxd5 {[%clk 0:01:34.2]} 19... exd5 {[%clk
0:01:17]} 20. Nb1 {[%clk 0:01:34.5]} 20... d4 {[%clk 0:01:14.6]} 21. exd4 {[%clk
0:01:34.3]} 21... cxd4 {[%clk 0:01:15.7]} 22. Rxc8 {[%clk 0:01:34.2]} 22... Bxc8
{[%clk 0:01:13.6]} 23. Qd3 {[%clk 0:01:26.3]} 23... Qd6 {[%clk 0:01:00.1]} 24.
Rd1 {[%clk 0:01:21.3]} 24... Rd8 {[%clk 0:00:52.4]} 25. Nc3 {[%clk 0:01:19.2]}
25... Ba6 {[%clk 0:00:38.2]} 26. Qxf5 {[%clk 0:01:12.7]} 26... Qe7 {[%clk
0:00:26.9]} 27. Ne4 {[%clk 0:01:02.5]} 27... Nd5 {[%clk 0:00:08.6]} 28. Rxd4
{[%clk 0:00:51.9]} 28... Bb7 {[%clk 0:00:08.2]} 29. Bh3 {[%clk 0:00:41.3]} 1-0

[Event "*** Titled Tuesday Blitz"]
[Site "Chess.com"]
[Date "2019.03.05"]
[Round "5"]
[White "ASVZ"]
[Black "RiskyDecision"]
[Result "1-0"]
[WhiteElo "2418"]
[BlackElo "2440"]
[TimeControl "180+2"]
[EndTime "14:11:55 PST"]
[Termination "ASVZ won by resignation"]

1. e4 {[%clk 0:03:01.9]} 1... e6 {[%clk 0:03:00.5]} 2. d4 {[%clk 0:03:02.9]}
2... d5 {[%clk 0:03:01.6]} 3. e5 {[%clk 0:03:04.5]} 3... c5 {[%clk 0:03:00.8]}
4. c3 {[%clk 0:03:06]} 4... Bd7 {[%clk 0:02:59.1]} 5. Be3 {[%clk 0:03:07.1]}
5... Qb6 {[%clk 0:02:54.6]} 6. Qd2 {[%clk 0:03:08]} 6... a6 {[%clk 0:02:44.3]}
7. dxc5 {[%clk 0:02:47.9]} 7... Bxc5 {[%clk 0:02:44.3]} 8. Bxc5 {[%clk
0:02:49.8]} 8... Qxc5 {[%clk 0:02:45.5]} 9. Qg5 {[%clk 0:02:50.9]} 9... g6
{[%clk 0:02:20.9]} 10. Nd2 {[%clk 0:02:48.5]} 10... Bb5 {[%clk 0:01:58.3]} 11.
Nb3 {[%clk 0:02:48.5]} 11... Qb6 {[%clk 0:01:54.1]} 12. Nf3 {[%clk 0:02:48.3]}
12... Nc6 {[%clk 0:01:51.8]} 13. Nfd4 {[%clk 0:02:43.8]} 13... Nxd4 {[%clk
0:01:47.1]} 14. cxd4 {[%clk 0:02:40.7]} 14... Ne7 {[%clk 0:01:45]} 15. Qf6
{[%clk 0:02:34.1]} 15... Rf8 {[%clk 0:01:35.4]} 16. Bxb5+ {[%clk 0:02:27.7]}
16... Qxb5 {[%clk 0:01:35.2]} 17. Rc1 {[%clk 0:02:26.8]} 17... Nc6 {[%clk
0:01:33.4]} 18. Rc3 {[%clk 0:02:07.1]} 18... a5 {[%clk 0:01:27.9]} 19. a4 {[%clk
0:01:45.2]} 19... Qxa4 {[%clk 0:01:14.9]} 20. O-O {[%clk 0:01:46]} 20... Qb4
{[%clk 0:01:16.3]} 21. Nc5 {[%clk 0:01:43.7]} 21... Nxd4 {[%clk 0:01:09.6]} 22.
Kh1 {[%clk 0:01:23]} 22... a4 {[%clk 0:01:03.5]} 23. Rfc1 {[%clk 0:00:29.3]}
23... Ne2 {[%clk 0:00:41.9]} 24. Nd3 {[%clk 0:00:21.2]} 24... Qxc3 {[%clk
0:00:11.9]} 25. Rxc3 {[%clk 0:00:21.8]} 25... Nxc3 {[%clk 0:00:12.6]} 26. bxc3
{[%clk 0:00:23.7]} 26... a3 {[%clk 0:00:13.6]} 27. Nb4 {[%clk 0:00:22.7]} 27...
a2 {[%clk 0:00:14.4]} 28. Nxa2 {[%clk 0:00:24.1]} 28... Rxa2 {[%clk 0:00:15.9]}
29. h4 {[%clk 0:00:26]} 29... Kd7 {[%clk 0:00:15.9]} 30. h5 {[%clk 0:00:26.9]}
30... gxh5 {[%clk 0:00:17]} 31. Qg7 {[%clk 0:00:28.1]} 31... Ra3 {[%clk
0:00:15.9]} 32. Qxf8 {[%clk 0:00:28.3]} 1-0